bitfinex-derivatives/quotes_BTCF0:USTF0_20250313
["timestamp","ask_amount","ask_price","bid_price","bid_amount"]
[1741846761168,0.21031392,83028.0,83027.0,0.1830523]
[1741846761462,0.05956302,83028.0,83027.0,0.1830523]
[1741846761665,0.18001392,83028.0,83027.0,0.1830523]
[1741846762867,0.18001392,83028.0,83027.0,0.0626]
[1741846764569,0.24301392,83028.0,83027.0,0.0626]
[1741846764868,0.1844509,83028.0,83027.0,0.0626]
[1741846765667,0.1520509,83028.0,83027.0,0.1830523]
[1741846766172,0.1214509,83028.0,83027.0,0.1830523]
[1741846766362,0.1214509,83028.0,83027.0,0.0626]
[1741846766969,0.1842509,83028.0,83027.0,0.0626]
[1741846767469,0.1842509,83028.0,83027.0,0.0312]
[1741846769974,0.1214509,83028.0,83027.0,0.1516523]
[1741846770271,0.001,83028.0,83027.0,0.1516523]
[1741846771360,0.1214509,83028.0,83027.0,0.1516523]
[1741846771567,0.001,83028.0,83027.0,0.1516523]
[1741846771974,0.1214509,83028.0,83027.0,0.1516523]
[1741846772777,0.1214509,83028.0,83027.0,0.1848523]
[1741846773569,0.3005124,83028.0,83027.0,0.0312]
[1741846774265,0.3617124,83028.0,83027.0,0.0312]
[1741846776473,0.24121129,83028.0,83027.0,0.0312]
[1741846779482,0.18001129,83028.0,83027.0,0.0312]
[1741846780077,0.24271129,83028.0,83027.0,0.0312]
[1741846784775,0.21061129,83028.0,83027.0,0.0312]
[1741846788087,0.18001129,83028.0,83027.0,0.1516523]
[1741846788479,0.18001129,83028.0,83027.0,0.0312]
[1741846789283,0.24061129,83028.0,83027.0,0.0312]
[1741846792084,0.18001129,83028.0,83027.0,0.1516523]
[1741846792882,0.18001129,83028.0,83027.0,0.2148523]
[1741846793887,0.18001129,83028.0,83027.0,0.0944]
[1741846795186,0.21071129,83028.0,83027.0,0.0944]
[1741846796599,0.42570337,83028.0,83027.0,0.0944]
[1741846797997,0.45880337,83028.0,83027.0,0.0944]
[1741846798802,0.45880337,83028.0,83027.0,0.0312]
[1741846799000,0.35201715,83028.0,83020.0,0.0328]
[1741846799196,0.120461,83021.0,83020.0,0.0328]
[1741846800100,0.184561,83021.0,83020.0,0.0328]
[1741846800402,0.120461,83021.0,83020.0,0.1532625]
[1741846801302,0.19032422,83048.0,83020.0,0.0328]
[1741846801507,0.120461,83021.0,83020.0,0.1532614]
[1741846802308,0.121461,83021.0,83020.0,0.1532614]
[1741846803508,0.18002139,83021.0,83020.0,0.1532614]
[1741846803703,0.18002139,83021.0,83020.0,0.0328]
[1741846803899,0.18002139,83021.0,83020.0,0.1532625]
[1741846805003,0.05956039,83021.0,83020.0,0.1732625]
[1741846805211,0.05956039,83021.0,83020.0,0.1832625]
[1741846805601,0.05956039,83021.0,83020.0,0.2232625]
[1741846805801,0.05956039,83021.0,83020.0,0.1632625]
[1741846806001,0.18002139,83021.0,83020.0,0.1632625]
[1741846806208,0.18002139,83021.0,83020.0,0.1832625]
[1741846806696,0.18002139,83021.0,83020.0,0.1632625]
[1741846806901,0.18002139,83021.0,83020.0,0.1832625]
[1741846809211,0.18002139,83021.0,83020.0,0.1632625]
[1741846810411,0.18002139,83021.0,83020.0,0.1832625]
[1741846810905,0.18002139,83021.0,83020.0,0.1632625]
[1741846811308,0.26491981,83021.0,83020.0,0.2132625]
[1741846814202,0.14445881,83021.0,83020.0,0.2450625]
[1741846814600,0.14445881,83021.0,83020.0,0.1950625]
[1741846814802,0.14445881,83021.0,83020.0,0.2350625]
[1741846815010,0.26491981,83021.0,83020.0,0.2350625]
[1741846815413,0.14445881,83021.0,83020.0,0.2350625]
[1741846815717,0.26491981,83021.0,83020.0,0.1950625]
[1741846815910,0.26491981,83021.0,83020.0,0.2150625]
[1741846818715,0.121461,83021.0,83020.0,0.2150625]
[1741846821518,0.121461,83021.0,83020.0,0.1950625]
[1741846821912,0.153961,83021.0,83020.0,0.1950625]
[1741846823009,0.16609128,83021.0,83020.0,0.1950625]
[1741846823615,0.16609128,83021.0,83019.0,0.00018073]
[1741846823822,0.1204697,83015.0,83008.0,0.033]
[1741846824118,0.0602339,83017.0,83007.0,0.34905439]
[1741846824119,0.1204741,83012.0,83011.0,0.0306]
[1741846824417,0.1204755,83011.0,83010.0,0.00180701]
[1741846824622,0.2151755,83011.0,83010.0,0.01180701]
[1741846824919,0.2151755,83011.0,83010.0,0.13228401]
[1741846825519,0.2151755,83011.0,83010.0,0.01180701]
[1741846825718,0.2151755,83011.0,83010.0,0.01]
[1741846826615,0.2151755,83011.0,83010.0,0.02229567]
[1741846826816,0.2274591,83011.0,83010.0,0.01]
[1741846827325,0.2274591,83011.0,83010.0,0.011]
[1741846830321,0.0947,83011.0,83010.0,0.011]
[1741846830527,0.1841755,83011.0,83010.0,0.14335396]
[1741846830829,0.24274517,83011.0,83010.0,0.14335396]
[1741846831423,0.24274517,83011.0,83010.0,0.17395396]
[1741846831618,0.05856967,83011.0,83010.0,0.19395396]
[1741846831820,0.05856967,83011.0,83010.0,0.17395396]
[1741846832324,0.17904517,83011.0,83010.0,0.05347696]
[1741846832724,0.17904517,83011.0,83010.0,0.17395396]
[1741846833728,0.22778499,83011.0,83010.0,0.02287696]
[1741846834717,0.22778499,83011.0,83010.0,0.011]
[1741846835117,0.28958499,83011.0,83010.0,0.011]
[1741846836633,0.28958499,83011.0,83010.0,0.0428]
[1741846836828,0.1204872,83003.0,83002.0,0.00018073]
[1741846837133,0.1205002,82994.0,82993.0,0.0318]
[1741846837325,0.1205002,82994.0,82993.0,0.094]
[1741846838131,0.1205002,82994.0,82993.0,0.0618]
[1741846838325,0.1833002,82994.0,82993.0,0.2124017]
[1741846838727,0.1793002,82994.0,82993.0,0.0919]
[1741846838932,0.1793002,82994.0,82993.0,0.2124017]
[1741846839130,0.1763002,82994.0,82993.0,0.0919]
[1741846839334,0.1763002,82994.0,82993.0,0.0989]
[1741846839625,0.18827976,82994.0,82993.0,0.0688]
[1741846840023,0.18827976,82994.0,82993.0,0.0748]
[1741846840331,0.18827976,82994.0,82993.0,0.1049]
[1741846841525,0.18827976,82994.0,82993.0,0.2254017]
[1741846841729,0.18827976,82994.0,82993.0,0.1049]
[1741846842927,0.1763002,82994.0,82993.0,0.1049]
[1741846843133,0.1763002,82994.0,82993.0,0.2254017]
[1741846843331,0.1763002,82994.0,82993.0,0.1049]
[1741846843533,0.1763002,82994.0,82993.0,0.2254017]
[1741846845335,0.1763002,82994.0,82993.0,0.1049]
[1741846846230,0.1763002,82994.0,82993.0,0.013]
[1741846846430,0.1205118,82986.0,82981.0,0.0318]
[1741846846630,0.1205118,82986.0,82982.0,0.032]
[1741846847243,0.12344,82986.0,82965.0,0.28881419]
[1741846847428,0.1205293,82974.0,82973.0,0.0656]
[1741846847630,0.1205293,82974.0,82973.0,0.1256]
[1741846847824,0.1165293,82974.0,82973.0,0.1256]
[1741846848537,0.1165293,82974.0,82973.0,0.2461307]
[1741846848538,0.1816293,82974.0,82973.0,0.2461307]
[1741846848738,0.1816293,82974.0,82973.0,0.1256]
[1741846849641,0.1776293,82974.0,82973.0,0.1256]
[1741846850127,0.1786293,82974.0,82973.0,0.049]
[1741846850336,0.2139293,82974.0,82973.0,0.052]
[1741846851034,0.2139293,82974.0,82973.0,0.02]
[1741846851433,0.2139293,82974.0,82973.0,0.01]
[1741846852642,0.1205409,82966.0,82965.0,0.00018073]
[1741846853032,0.1205409,82966.0,82965.0,0.03338073]
[1741846853546,0.1852409,82966.0,82965.0,0.00018073]
[1741846853934,0.1822409,82966.0,82965.0,0.00018073]
[1741846854136,0.1822409,82966.0,82951.0,0.0337]
[1741846854137,0.0647,82966.0,82951.0,0.0337]
[1741846854343,0.1205467,82962.0,82961.0,0.0329]
[1741846855236,0.1542467,82962.0,82961.0,0.0329]
[1741846855436,0.1855467,82962.0,82961.0,0.0329]
[1741846855944,0.07686815,82962.0,82953.0,0.033]
[1741846856141,0.060277,82957.0,82954.0,0.0666]
[1741846856339,0.1205569,82955.0,82954.0,0.0766]
[1741846856844,0.1870569,82955.0,82954.0,0.0766]
[1741846857746,0.0665,82955.0,82930.0,0.21617569]
[1741846858048,0.1205729,82944.0,82943.0,0.103]
[1741846858840,0.1205729,82944.0,82943.0,0.2235743]
[1741846859636,0.1875729,82944.0,82943.0,0.2235743]
[1741846859832,0.1875729,82944.0,82943.0,0.2553743]
[1741846860341,0.1885729,82944.0,82943.0,0.2553743]
[1741846860645,0.001,82944.0,82943.0,0.2653743]
[1741846860842,0.01218387,82962.0,82951.0,0.1205627]
[1741846861142,0.001,82955.0,82951.0,0.1605627]
[1741846861344,0.1205589,82954.0,82951.0,0.1405627]
[1741846861545,0.001,82955.0,82951.0,0.2060627]
[1741846861743,0.001,82955.0,82951.0,0.2260627]
[1741846862053,0.01218387,82962.0,82951.0,0.2260627]
[1741846862259,0.12074205,82952.0,82951.0,0.2260627]
[1741846862750,0.12274205,82952.0,82951.0,0.2260627]
[1741846863141,0.00218085,82952.0,82951.0,0.2260627]
[1741846864058,0.12274205,82952.0,82951.0,0.2260627]
[1741846864951,0.12274205,82952.0,82951.0,0.1055]
[1741846865249,0.12274205,82952.0,82951.0,0.0655]
[1741846865448,0.12274205,82952.0,82951.0,0.033]
[1741846865649,0.1205714,82945.0,82944.0,0.0324]
[1741846865945,0.1205714,82945.0,82925.0,0.0602996]
[1741846865946,0.120586,82935.0,82918.0,0.28881419]
[1741846866252,0.1206019,82924.0,82923.0,0.0326]
[1741846866455,0.1206019,82924.0,82923.0,0.4732034]
[1741846866651,0.00018085,82932.0,82923.0,0.385]
[1741846866947,0.152495,82930.0,82929.0,0.1205947]
[1741846867147,0.0319,82930.0,82929.0,0.1505947]
[1741846867348,0.00012965,82931.0,82929.0,0.2605947]
[1741846867547,0.00012965,82931.0,82930.0,0.1528932]
[1741846867751,0.00012965,82931.0,82930.0,0.2152932]
[1741846869840,0.12072145,82931.0,82930.0,0.0947]
[1741846870151,0.18622145,82931.0,82930.0,0.0323]
[1741846870654,0.03192965,82931.0,82930.0,0.1528932]
[1741846870849,0.00012965,82931.0,82930.0,0.1528932]
[1741846871056,0.12072145,82931.0,82930.0,0.1628932]
[1741846871245,0.18622145,82931.0,82930.0,0.0423]
[1741846871744,0.21822145,82931.0,82930.0,0.0323]
[1741846873656,0.09762965,82931.0,82930.0,0.1528932]
[1741846873953,0.09762965,82931.0,82930.0,0.1828932]
[1741846873954,0.00012965,82931.0,82930.0,0.1828932]
[1741846874859,0.00012965,82931.0,82930.0,0.19526756]
[1741846875464,0.00012965,82931.0,82930.0,0.1828932]
[1741846875757,0.12072145,82931.0,82930.0,0.1828932]
[1741846876153,0.12072145,82931.0,82930.0,0.0423]
[1741846876353,0.15432145,82931.0,82930.0,0.1628932]
[1741846876659,0.15424159,82931.0,82930.0,0.1628932]
[1741846876860,0.15424159,82931.0,82930.0,0.1949932]
[1741846877951,4.979e-05,82931.0,82930.0,0.2149932]
[1741846878361,0.12064159,82931.0,82930.0,0.1949932]
[1741846879961,4.979e-05,82931.0,82930.0,0.2349932]
[1741846880852,0.0018092,82941.0,82940.0,0.1205787]
[1741846881052,0.1205772,82941.0,82940.0,0.3414413]
[1741846881657,0.1205772,82941.0,82940.0,0.4199395]
[1741846881866,0.12063815,82941.0,82940.0,0.4199395]
[1741846882052,0.12063815,82941.0,82940.0,0.2993608]
[1741846882457,0.12063815,82941.0,82940.0,0.0884982]
[1741846882670,0.12063815,82941.0,82940.0,0.2190769]
[1741846883566,0.12063815,82941.0,82940.0,0.2090769]
[1741846884163,6.095e-05,82941.0,82940.0,0.2090769]
[1741846884356,6.095e-05,82941.0,82940.0,0.2790769]
[1741846884969,0.12063815,82941.0,82940.0,0.2790769]
[1741846885474,6.095e-05,82941.0,82940.0,0.2790769]
[1741846885972,6.095e-05,82941.0,82940.0,0.2656787]
[1741846887690,0.12063815,82941.0,82940.0,0.2656787]
[1741846887880,0.12063815,82941.0,82940.0,0.27911628]
[1741846888279,0.12063815,82941.0,82940.0,0.2656787]
[1741846888987,0.12063815,82941.0,82940.0,0.1451]
[1741846889190,0.12063815,82941.0,82940.0,0.2656787]
[1741846889581,6.095e-05,82941.0,82940.0,0.2656787]
[1741846891280,6.095e-05,82941.0,82940.0,0.3891987]
[1741846892277,0.12063815,82941.0,82940.0,0.3891987]
[1741846892888,0.18663815,82941.0,82940.0,0.3891987]
[1741846893081,0.18663815,82941.0,82940.0,0.2656787]
[1741846894085,0.18663815,82941.0,82940.0,0.1451]
[1741846894493,6.095e-05,82941.0,82940.0,0.2656787]
[1741846894681,6.095e-05,82941.0,82940.0,0.3891987]
[1741846894877,0.12063815,82941.0,82940.0,0.3891987]
[1741846895393,6.095e-05,82941.0,82940.0,0.3891987]
[1741846896790,0.12063815,82941.0,82940.0,0.3891987]
[1741846897093,6.095e-05,82941.0,82940.0,0.3891987]
[1741846897986,6.095e-05,82941.0,82940.0,0.4203987]
[1741846901482,6.095e-05,82941.0,82940.0,0.43393925]
[1741846902492,0.10723035,82943.0,82940.0,0.31336055]
[1741846902683,0.10723035,82943.0,82942.0,0.1205758]
[1741846902997,0.10723035,82943.0,82942.0,0.4105758]
[1741846903386,0.10723035,82943.0,82942.0,0.49031635]
[1741846904192,0.14292137,82948.0,82947.0,0.1205685]
[1741846904389,0.14292137,82948.0,82947.0,0.6705685]
[1741846904587,0.17884915,82953.0,82952.0,0.1205612]
[1741846904784,0.25006552,82971.0,82970.0,0.1205351]
[1741846904984,0.24882551,82971.0,82970.0,0.41407565]
[1741846905796,0.24882551,82971.0,82970.0,0.42407565]
[1741846905996,0.36935911,82971.0,82970.0,0.42407565]
[1741846906289,0.36935911,82971.0,82970.0,0.49647565]
[1741846906995,0.37335911,82971.0,82970.0,0.49647565]
[1741846907791,0.37335911,82971.0,82970.0,0.4829351]
[1741846908196,0.1245336,82971.0,82970.0,0.4829351]
[1741846910486,0.1215336,82971.0,82970.0,0.4829351]
[1741846910686,0.1245336,82971.0,82970.0,0.4829351]
[1741846912697,0.1555336,82971.0,82970.0,0.4829351]
[1741846913289,0.004,82971.0,82970.0,0.4829351]
[1741846913488,0.0602553,82987.0,82976.0,0.1205264]
[1741846913786,0.03248085,82979.0,82978.0,0.1205235]
[1741846913986,0.15300285,82979.0,82978.0,0.2121235]
[1741846914183,0.00018085,82979.0,82978.0,0.2121235]
[1741846914393,0.12070285,82979.0,82978.0,0.2121235]
[1741846914989,0.12070285,82979.0,82978.0,0.22558251]
[1741846915192,0.15610285,82979.0,82978.0,0.23786698]
[1741846915392,0.15910285,82979.0,82978.0,0.23786698]
[1741846915983,0.15910285,82979.0,82978.0,0.22558251]
[1741846916789,0.15610285,82979.0,82978.0,0.23793609]
[1741846916997,0.16010285,82979.0,82978.0,0.23793609]
[1741846917296,0.16010285,82979.0,82978.0,0.25018465]
[1741846917594,0.16010285,82979.0,82978.0,0.25118465]
[1741846917798,0.16010285,82979.0,82978.0,0.23772564]
[1741846917985,0.16010285,82979.0,82978.0,0.23772355]
[1741846918898,0.03958085,82979.0,82978.0,0.23772355]
[1741846919195,0.16010285,82979.0,82978.0,0.23772355]
[1741846919989,0.16010285,82979.0,82978.0,0.21772355]
[1741846920194,0.16010285,82979.0,82978.0,0.2031235]
[1741846920896,0.16010285,82979.0,82978.0,0.21522536]
[1741846922399,0.16010285,82979.0,82978.0,0.22752459]
[1741846922797,0.16010285,82979.0,82978.0,0.21542273]
[1741846923192,0.16010285,82979.0,82978.0,0.22771542]
[1741846923389,0.16010285,82979.0,82978.0,0.21542273]
[1741846923903,0.03958085,82979.0,82978.0,0.21542273]
[1741846925199,0.0602497,82995.0,82978.0,0.21542273]
[1741846925401,0.0602512,82993.0,82992.0,0.1205017]
[1741846925704,0.0602512,82993.0,82992.0,0.13280093]
[1741846925904,0.1229512,82993.0,82992.0,0.13280093]
[1741846926090,0.1229512,82993.0,82992.0,0.16290093]
[1741846926903,0.1299512,82993.0,82992.0,0.16290093]
[1741846927099,0.1299512,82993.0,82992.0,0.01229923]
[1741846927506,0.1299512,82993.0,82970.0,0.55689504]
[1741846927507,0.0602557,82987.0,82970.0,0.4194]
[1741846927710,0.1205133,82985.0,82984.0,0.01018074]
[1741846927908,0.1205133,82985.0,82984.0,0.14300713]
[1741846928098,0.2153133,82985.0,82984.0,0.14300713]
[1741846928300,0.2153133,82985.0,82984.0,0.13069544]
[1741846928608,0.2143133,82985.0,82984.0,0.13069544]
[1741846929303,0.2203133,82985.0,82984.0,0.13169544]
[1741846929505,0.0685,82985.0,82984.0,0.16169544]
[1741846929701,0.1890133,82985.0,82984.0,0.13169544]
[1741846930204,0.1890133,82985.0,82984.0,0.19339544]
[1741846930403,0.1890133,82985.0,82984.0,0.01118074]
[1741846930700,0.1940133,82985.0,82984.0,0.00118074]
[1741846932903,0.1940133,82985.0,82963.0,0.4796722]
[1741846932904,0.120538,82968.0,82964.0,0.0312]
[1741846933093,0.1205423,82965.0,82964.0,0.2637409]
[1741846933294,0.1205423,82965.0,82964.0,0.3871809]
[1741846934203,0.1205423,82965.0,82964.0,0.3891809]
[1741846935307,0.1205423,82965.0,82964.0,0.2657409]
[1741846936206,0.0315,82967.0,82966.0,0.1205409]
[1741846936407,0.0313,82972.0,82971.0,0.1205336]
[1741846936608,0.12071294,82973.0,82972.0,0.1205322]
[1741846936809,0.12071294,82973.0,82972.0,0.1714322]
[1741846937613,0.00018074,82973.0,82972.0,0.19327688]
[1741846937814,0.00018074,82973.0,82972.0,0.34827688]
[1741846938017,0.12171144,82973.0,82972.0,0.34827688]
[1741846938214,0.12171144,82973.0,82972.0,0.3364322]
[1741846938601,0.12471144,82973.0,82972.0,0.0509]
[1741846938908,0.15741144,82973.0,82972.0,0.0509]
[1741846939706,0.03688074,82973.0,82962.0,0.0314]
[1741846940010,0.1205438,82964.0,82963.0,0.3058246]
[1741846940208,0.1205438,82964.0,82963.0,0.5658246]
[1741846940609,0.1205438,82964.0,82963.0,0.57923926]
[1741846941021,0.0602682,82970.0,82963.0,0.57923926]
[1741846941022,0.06144634,82973.0,82965.0,0.0602706]
[1741846941211,0.06144634,82973.0,82970.0,0.1205322]
[1741846941212,0.120535,82971.0,82970.0,0.1205322]
[1741846941417,0.120535,82971.0,82970.0,0.2323322]
[1741846941910,0.120535,82971.0,82970.0,0.24574686]
[1741846943916,0.122535,82971.0,82970.0,0.24574686]
[1741846944115,0.003,82971.0,82970.0,0.24574686]
[1741846944516,0.003,82971.0,82970.0,0.25806873]
[1741846944715,0.003,82971.0,82970.0,0.24465407]
[1741846946014,0.003,82971.0,82970.0,0.24464799]
[1741846947321,0.0453853,98213.0,82982.0,0.1205147]
[1741846947322,0.1205165,82983.0,82982.0,0.1205147]
[1741846947523,0.1205165,82983.0,82982.0,0.15283049]
[1741846948020,0.1205165,82983.0,82982.0,0.21913049]
[1741846948217,0.1205165,82983.0,82982.0,0.07861579]
[1741846948420,0.1205165,82983.0,82982.0,0.0331]
[1741846948621,0.1255165,82983.0,82982.0,0.0331]
[1741846948826,0.1255165,82983.0,82982.0,0.1536177]
[1741846950416,0.1325165,82983.0,82982.0,0.0341]
[1741846951022,0.1325165,82983.0,82982.0,0.1546177]
[1741846951219,0.1325165,82983.0,82982.0,0.0341]
[1741846951422,0.012,82983.0,82982.0,0.2746177]
[1741846953523,0.21422594,82998.0,82982.0,0.1541]
[1741846953826,0.21422594,82998.0,82990.0,0.120506]
[1741846954023,0.21422594,82998.0,82990.0,0.683946]
[1741846954226,0.21422594,82998.0,82990.0,0.778746]
[1741846954727,0.0314,83003.0,82990.0,0.778746]
[1741846955425,0.00718074,82991.0,82990.0,0.778746]
[1741846957027,0.01018074,82991.0,82990.0,0.779746]
[1741846957716,0.01018074,82991.0,82990.0,0.456306]
[1741846957916,0.13068534,82991.0,82990.0,0.241]
[1741846958112,0.01018074,82991.0,82990.0,0.121506]
[1741846958317,0.01018074,82991.0,82990.0,0.001]
[1741846958518,0.01018074,82991.0,82990.0,0.19710685]
[1741846958519,0.13068534,82991.0,82990.0,0.19710685]
[1741846958925,0.13068534,82991.0,82990.0,0.07660085]
[1741846959126,0.01018074,82991.0,82990.0,0.07660085]
[1741846959321,0.13068534,82991.0,82990.0,0.20710685]
[1741846959625,0.13068534,82991.0,82990.0,0.01330085]
[1741846960526,0.13068534,82991.0,82990.0,0.001]
[1741846960722,0.13068534,82991.0,82990.0,0.121506]
[1741846961131,0.13068534,82991.0,82990.0,0.184006]
[1741846961622,0.13068534,82991.0,82990.0,0.0635]
[1741846961819,0.13068534,82991.0,82974.0,0.21635643]
[1741846961820,0.28362074,82991.0,82974.0,0.21635643]
[1741846962017,0.1205278,82975.0,82974.0,0.21635643]
[1741846962818,0.1516278,82975.0,82974.0,0.21635643]
[1741846964330,0.1844278,82975.0,82974.0,0.21635643]
[1741846964828,0.1874278,82975.0,82974.0,0.00018074]
[1741846965732,0.1884278,82975.0,82974.0,4e-08]
[1741846969031,0.42608865,82975.0,82974.0,4e-08]
[1741846970932,0.1205583,82954.0,82953.0,0.00180803]
[1741846971116,0.1205583,82954.0,82953.0,0.26417897]
[1741846972128,0.1845583,82954.0,82953.0,0.26917897]
[1741846972327,0.1845583,82954.0,82953.0,0.26280803]
[1741846975936,0.1845583,82954.0,82953.0,0.32610803]
[1741846976537,0.1845583,82954.0,82953.0,0.44666783]
[1741846976737,0.1845583,82954.0,82953.0,0.32610803]
[1741846976930,0.1845583,82954.0,82953.0,0.44666783]
[1741846978229,0.1845583,82954.0,82953.0,0.32610803]
[1741846978735,0.1845583,82954.0,82953.0,0.44666783]
[1741846980233,0.1845583,82954.0,82953.0,0.32610803]
[1741846980633,0.1845583,82954.0,82953.0,0.44666783]
[1741846981532,0.0323,82954.0,82953.0,0.44666783]
[1741846981734,0.1205525,82958.0,82957.0,0.1205525]
[1741846982427,0.1205525,82958.0,82957.0,0.1305525]
[1741846982832,0.1205525,82958.0,82957.0,0.2281525]
[1741846983033,0.1525525,82958.0,82957.0,0.2321525]
[1741846983535,0.1525525,82958.0,82957.0,0.2361525]
[1741846984529,0.1525525,82958.0,82957.0,0.24851278]
[1741846986237,0.1205525,82958.0,82957.0,0.24851278]
[1741846986741,0.1205525,82958.0,82957.0,0.2361525]
[1741846987137,0.1205525,82958.0,82957.0,0.1156]
[1741846987639,0.1511525,82958.0,82957.0,0.0727]
[1741846987845,0.1837525,82958.0,82957.0,0.0727]
[1741846988537,0.1837525,82958.0,82953.0,0.00180803]
[1741846988744,0.1205583,82954.0,82949.0,0.0624]
[1741846989039,0.1205641,82950.0,82949.0,0.0724]
[1741846989942,0.12057,82946.0,82940.0,0.033]
[1741846990147,0.11357,82946.0,82941.0,0.0624]
[1741846990535,0.10857,82946.0,82941.0,0.0624]
[1741846991530,0.10857,82946.0,82945.0,0.00718074]
[1741846992142,0.12052027,82946.0,82945.0,0.00718074]
[1741846993042,0.12152027,82946.0,82945.0,0.00018074]
[1741847013250,0.18662027,82946.0,82945.0,0.00018074]
[1741847014049,0.18662027,82946.0,82942.0,0.0314]
[1741847014250,0.1205729,82944.0,82943.0,0.0304]
[1741847014451,0.0602884,82942.0,82939.0,0.00013083]
[1741847014760,0.1205787,82940.0,82939.0,0.00013083]
[1741847015163,0.1520787,82940.0,82939.0,0.00013083]
[1741847015455,0.1205816,82938.0,82931.0,0.00018085]
[1741847015761,0.1205903,82932.0,82931.0,0.01018085]
[1741847016357,0.12069285,82932.0,82931.0,0.01018085]
[1741847016561,0.18419285,82932.0,82931.0,0.01018085]
[1741847017261,0.18419285,82932.0,82931.0,0.01518085]
[1741847017653,0.18419285,82932.0,82931.0,0.07938085]
[1741847018161,0.19620994,82932.0,82931.0,0.07938085]
[1741847018855,0.19620994,82932.0,82931.0,0.19997265]
[1741847019072,0.16290994,82932.0,82931.0,0.19997265]
[1741847019257,0.16290994,82932.0,82931.0,0.07938085]
[1741847019963,0.16390994,82932.0,82931.0,0.07938085]
[1741847021449,0.13370994,82932.0,82931.0,0.07938085]
[1741847021661,0.00110255,82932.0,82931.0,0.43997265]
[1741847022366,0.12169285,82932.0,82931.0,0.43997265]
[1741847022559,0.12169285,82932.0,82931.0,0.31938085]
[1741847022864,0.12169285,82932.0,82931.0,0.43997265]
[1741847023363,0.18619285,82932.0,82931.0,0.43997265]
[1741847023957,0.18619285,82932.0,82931.0,0.65614834]
[1741847026964,0.18619285,82932.0,82931.0,0.43997265]
[1741847029168,0.12169285,82932.0,82931.0,0.43997265]
[1741847030163,0.00110255,82932.0,82931.0,0.43997265]
[1741847030668,0.12169285,82932.0,82931.0,0.43997265]
[1741847031670,0.15269285,82932.0,82931.0,0.43997265]
[1741847034273,0.26039714,82932.0,82931.0,0.43997265]
[1741847037565,0.15269285,82932.0,82931.0,0.43997265]
[1741847037961,0.18489285,82932.0,82931.0,0.43997265]
[1741847044378,0.18489285,82932.0,82931.0,0.20997265]
[1741847045576,0.18489285,82932.0,82931.0,0.17777265]
[1741847045968,0.18489285,82932.0,82931.0,0.05718085]
[1741847046369,0.18489285,82932.0,82931.0,0.02518085]
[1741847046570,0.1206005,82925.0,82924.0,0.21617569]
[1741847046869,0.12073133,82925.0,82924.0,0.46617569]
[1741847047164,0.12069811,82925.0,82924.0,0.46617569]
[1741847047364,0.0944,82926.0,82913.0,0.35991007]
[1741847047365,0.1206063,82921.0,82913.0,0.35991007]
[1741847047564,0.1206063,82921.0,82914.0,0.1519155]
[1741847047768,0.1146063,82921.0,82915.0,0.120615]
[1741847047967,0.12660777,82921.0,82920.0,0.40942199]
[1741847048178,0.1587386,82921.0,82920.0,0.41942199]
[1741847048379,0.1587386,82921.0,82920.0,0.29881419]
[1741847048673,0.0603061,82917.0,82901.0,0.43166477]
[1741847048873,0.0603061,82917.0,82908.0,0.0306]
[1741847048874,0.1206238,82909.0,82908.0,0.0306]
[1741847049068,0.12071309,82909.0,82908.0,0.0306]
[1741847049267,0.00013083,82909.0,82908.0,0.1206252]
[1741847049469,0.00013083,82909.0,82908.0,0.1506252]
[1741847049775,0.12075463,82909.0,82908.0,0.01]
[1741847050278,0.120634,82902.0,82901.0,0.43166477]
[1741847050484,0.120634,82902.0,82901.0,0.56230017]
[1741847050485,0.12073957,82902.0,82901.0,0.56230017]
[1741847050677,0.12073957,82902.0,82901.0,0.47246477]
[1741847050876,0.12073957,82902.0,82901.0,0.59310017]
[1741847051379,0.12073957,82902.0,82901.0,0.47246477]
[1741847051578,0.15173957,82902.0,82901.0,0.47246477]
[1741847051765,0.15173957,82902.0,82901.0,0.46246477]
[1741847051970,0.15173957,82902.0,82901.0,0.58310017]
[1741847052276,0.15173957,82902.0,82901.0,0.46246477]
[1741847052576,0.0603221,82895.0,82881.0,0.64633925]
[1741847052772,0.1206485,82892.0,82891.0,0.50270831]
[1741847052969,0.0905364,82894.0,82893.0,0.120647]
[1741847053172,0.0905364,82894.0,82893.0,0.01]
[1741847053173,0.1508591,82894.0,82893.0,0.01]
[1741847053676,0.0611,82894.0,82879.0,0.1848905]
[1741847053884,0.1809977,82882.0,82881.0,0.1206583]
[1741847054178,0.1809977,82882.0,82881.0,0.16812219]
[1741847054378,0.1811077,82882.0,82881.0,0.16812219]
[1741847054879,0.1811077,82882.0,82881.0,0.28878669]
[1741847055079,0.1811077,82882.0,82881.0,0.16812219]
[1741847055466,0.1206674,82879.0,82878.0,0.0333]
[1741847055669,0.1206674,82879.0,82878.0,0.0433]
[1741847056380,0.1206647,82881.0,82880.0,0.1206645]
[1741847056576,0.1206647,82881.0,82880.0,0.1306645]
[1741847056772,0.1206647,82881.0,82880.0,0.1622645]
[1741847059384,0.1206647,82881.0,82880.0,0.1722645]
[1741847060674,0.00011,82882.0,82880.0,0.1722645]
[1741847060974,0.1207745,82882.0,82881.0,0.1206645]
[1741847061175,0.1207745,82882.0,82881.0,0.1715645]
[1741847062170,0.1207745,82882.0,82881.0,0.0509]
[1741847062369,0.1535745,82882.0,82881.0,0.0309]
[1741847062579,0.2148745,82882.0,82881.0,0.0309]
[1741847062977,0.1206733,82875.0,82874.0,0.00180937]
[1741847063383,0.1206733,82875.0,82874.0,0.12248407]
[1741847063583,0.1206733,82875.0,82874.0,0.13248407]
[1741847063787,0.1206733,82875.0,82874.0,0.12248407]
[1741847063980,0.00011,82882.0,82874.0,0.00180937]
[1741847064184,0.00011,82882.0,82881.0,0.1206645]
[1741847064484,0.1207731,82882.0,82881.0,0.01]
[1741847064684,0.1539731,82882.0,82881.0,0.0747]
[1741847064883,0.1842731,82882.0,82881.0,0.1953645]
[1741847065783,0.03331,82882.0,82881.0,0.1953645]
[1741847066280,0.15668,82882.0,82874.0,0.00244937]
[1741847066478,0.1206733,82875.0,82874.0,0.01180937]
[1741847066678,0.12079302,82875.0,82874.0,0.00180937]
[1741847067272,0.18509302,82875.0,82874.0,0.12248407]
[1741847067478,0.1969301,82875.0,82874.0,0.00180937]
[1741847068598,0.1969301,82875.0,82874.0,0.12248407]
[1741847068788,0.1969301,82875.0,82874.0,0.00180937]
[1741847069488,0.1206864,82866.0,82863.0,0.0322]
[1741847069787,0.1206864,82866.0,82865.0,0.03]
[1741847070189,0.1206864,82866.0,82865.0,0.1506878]
[1741847070385,0.1843864,82866.0,82865.0,0.03]
[1741847071383,0.18451723,82866.0,82865.0,0.03]
[1741847071784,0.03193083,82866.0,82865.0,0.1506878]
[1741847072088,0.15261723,82866.0,82865.0,0.1913878]
[1741847072287,0.00113083,82866.0,82865.0,0.1913878]